bitfinex/quotes_BTCUSD_20250204
["timestamp","ask_amount","ask_price","bid_price","bid_amount"]
[1738682199161,0.44296675,99114.0,99113.0,0.00018957]
[1738682199431,0.44296675,99114.0,99100.0,0.00013169]
[1738682199432,0.15136,99101.0,99100.0,0.00013169]
[1738682199644,0.25522075,99101.0,99100.0,0.00013169]
[1738682199856,0.151382,99087.0,99070.0,0.01670022]
[1738682200074,0.00147569,99086.0,99070.0,0.01670022]
[1738682200280,1.5,99085.0,99070.0,0.01670022]
[1738682200702,0.151368,99096.0,99081.0,0.15139]
[1738682200915,0.151368,99096.0,99070.0,0.01670022]
[1738682200916,0.02897117,99093.0,99070.0,0.01670022]
[1738682201127,0.151383,99087.0,99072.0,0.151404]
[1738682201343,0.151385,99085.0,99070.0,0.01670022]
[1738682201557,0.151406,99071.0,99070.0,0.01670022]
[1738682201763,0.151406,99071.0,99056.0,0.00019777]
[1738682201764,0.15,99064.0,99056.0,0.00019777]
[1738682201982,0.301435,99052.0,99028.0,0.00020187]
[1738682202192,1.5,99057.0,99042.0,0.20213382]
[1738682202404,0.31517856,99061.0,99042.0,0.00019982]
[1738682202619,0.0805384,99076.0,99052.0,0.201914]
[1738682202836,0.0805384,99076.0,99042.0,0.00019982]
[1738682202837,0.08201409,99079.0,99053.0,0.10238506]
[1738682203046,0.00046684,99057.0,99053.0,0.10238506]
[1738682203334,0.00046684,99057.0,99055.0,0.10238506]
[1738682203548,0.00046684,99057.0,99056.0,0.25502514]
[1738682203778,0.00046684,99057.0,99056.0,0.25381406]
[1738682203972,0.0805384,99089.0,99088.0,0.15138]
[1738682204190,0.0805384,99089.0,99088.0,0.25390584]
[1738682204399,0.0805384,99110.0,99099.0,0.151363]
[1738682204623,0.0805384,99110.0,99099.0,0.25374806]
[1738682204830,0.0805384,99110.0,99099.0,0.10238506]
[1738682205043,0.0805384,99110.0,99108.0,0.151348]
[1738682205246,0.0805384,99110.0,99101.0,0.201814]
[1738682205450,0.00147569,99120.0,99106.0,0.151352]
[1738682205654,0.00147569,99120.0,99099.0,0.10238506]
[1738682205881,0.00147569,99120.0,99110.0,0.151346]
[1738682206092,1.5,99121.0,99100.0,0.10238506]
[1738682206313,0.01,99159.0,99100.0,0.10238506]
[1738682206314,0.31517856,99140.0,99122.0,0.151328]
[1738682206551,0.00147569,99138.0,99101.0,0.00121079]
[1738682206790,0.00147569,99132.0,99102.0,0.10238506]
[1738682207024,0.00147569,99138.0,99129.0,0.151316]
[1738682207314,0.00147569,99138.0,99065.0,0.0466]
[1738682207315,0.10238506,99137.0,99065.0,0.0466]
[1738682207540,0.301316,99130.0,99129.0,0.00014078]
[1738682207745,0.7793647,99130.0,99129.0,0.00014078]
[1738682208152,0.15,99119.0,99095.0,0.15196478]
[1738682208363,0.15,99117.0,99095.0,0.00013971]
[1738682208572,0.00147569,99116.0,99096.0,0.30420906]
[1738682208781,0.00147569,99115.0,99099.0,0.151363]
[1738682209033,0.15,99107.0,99095.0,0.00013971]
[1738682209274,0.151368,99096.0,99095.0,0.00013971]
[1738682209509,0.50772347,99096.0,99095.0,0.00013971]
[1738682209799,0.40375306,99096.0,99095.0,0.00013971]
[1738682210035,0.42211608,99096.0,99095.0,0.00013971]
[1738682210928,0.40375306,99096.0,99095.0,0.00013971]
[1738682211910,0.15,99096.0,99095.0,0.00013971]
[1738682212159,0.0805384,99134.0,99095.0,0.00013971]
[1738682212160,0.08201409,99109.0,99095.0,0.00013971]
[1738682212393,0.153368,99096.0,99095.0,0.00013971]
[1738682212625,0.40375306,99096.0,99095.0,0.00013971]
[1738682212854,0.2018,99108.0,99095.0,0.00013934]
[1738682213091,0.00147569,99107.0,99095.0,0.00013934]
[1738682213332,0.151367,99097.0,99095.0,0.00013934]
[1738682213571,0.31517856,99105.0,99096.0,0.151367]
[1738682213811,0.0805384,99124.0,99095.0,0.00013934]
[1738682213812,0.31517856,99120.0,99095.0,0.00013934]
[1738682214042,0.151365,99098.0,99095.0,0.00013934]
[1738682214281,0.151368,99096.0,99095.0,0.00013934]
[1738682214510,1.50147569,99096.0,99095.0,0.00013934]
[1738682214748,0.151338,99116.0,99096.0,0.201824]
[1738682215018,0.151338,99116.0,99095.0,0.00013934]
[1738682215019,0.0805384,99104.0,99095.0,0.00013934]
[1738682215270,0.00147569,99103.0,99095.0,0.00013934]
[1738682215503,0.151347,99110.0,99095.0,0.00013934]
[1738682215740,0.0805384,99104.0,99095.0,0.00013934]
[1738682215972,0.151364,99099.0,99095.0,0.00013934]
[1738682216242,0.151368,99096.0,99095.0,0.00013934]
[1738682216477,0.40522875,99096.0,99095.0,0.00013934]
[1738682216710,2.05449494,99096.0,99095.0,0.00013934]
[1738682217448,0.151427,99057.0,99034.0,0.0233996]
[1738682217689,0.10238506,99057.0,99034.0,0.0233996]
[1738682217940,0.151447,99044.0,99034.0,0.0233996]
[1738682218174,0.15292269,99044.0,99034.0,0.0233996]
[1738682218409,0.10386075,99043.0,99034.0,0.0233996]
[1738682218640,0.12233977,99043.0,99034.0,0.0233996]
[1738682218873,0.12100402,99043.0,99034.0,0.0233996]
[1738682219132,0.01861896,99043.0,99034.0,0.0233996]
[1738682219365,0.02009465,99043.0,99034.0,0.0233996]
[1738682219603,0.01861896,99043.0,99034.0,0.1748606]
[1738682219833,0.04822425,99043.0,99034.0,0.0233996]
[1738682220540,0.15060931,99043.0,99034.0,0.0233996]
[1738682220746,0.324461,99035.0,99034.0,0.00930028]
[1738682220960,0.301496,99012.0,99011.0,0.01159732]
[1738682221181,0.348579,98958.0,98946.0,0.0234]
[1738682221440,0.498579,98958.0,98942.0,0.000107]
[1738682221656,0.01,98966.0,98942.0,0.000107]
[1738682221657,0.3,98975.0,98942.0,0.000107]
[1738682221867,0.3,98975.0,98943.0,0.202134]
[1738682221868,0.00675352,98970.0,98943.0,0.202134]
[1738682222086,0.35563806,98980.0,98968.0,0.151564]
[1738682222087,0.00147569,98969.0,98968.0,0.151564]
[1738682222300,0.0404595,98980.0,98979.0,0.151547]
[1738682222532,0.3,98999.0,98942.0,0.000107]
[1738682222533,0.3,98999.0,98950.0,0.31517856]
[1738682222779,0.01848316,99012.0,98942.0,0.000107]
[1738682222780,0.01048316,99012.0,98970.0,0.31517856]
[1738682223008,0.05543706,99020.0,99019.0,0.151486]
[1738682223219,0.1289,99069.0,99001.0,0.202018]
[1738682223220,0.02953097,99004.0,99003.0,0.27981]
[1738682223441,0.31517856,99060.0,99005.0,0.01]
[1738682223657,0.31517856,99020.0,98994.0,0.01]
[1738682223866,0.31517856,99020.0,98966.0,0.202089]
[1738682224075,0.31517856,99020.0,98965.0,0.0496]
[1738682224297,1.5,98983.0,98966.0,0.0012122]
[1738682224510,1.5,98983.0,98957.0,0.000107]
[1738682224718,0.15,98999.0,98957.0,0.000107]
[1738682224932,0.31517856,98980.0,98957.0,0.000107]
[1738682225138,0.151552,98976.0,98957.0,0.000107]
[1738682225386,0.151565,98968.0,98957.0,0.000107]
[1738682225597,1.5,98958.0,98957.0,0.000107]
[1738682226647,1.51845363,98958.0,98957.0,0.00057384]
[1738682227104,0.01845363,98958.0,98957.0,0.00057384]
[1738682227322,0.94821463,98958.0,98957.0,0.00057384]
[1738682227532,0.94821463,98958.0,98942.0,0.000107]
[1738682227533,0.701602,98943.0,98942.0,0.000107]
[1738682227741,1.033772,98943.0,98942.0,0.000107]
[1738682227979,1.09262903,98943.0,98942.0,0.000107]
[1738682228193,0.311613,98936.0,98935.0,2.2e-07]
[1738682228412,0.311613,98936.0,98858.0,0.015047]
[1738682228413,0.301685,98889.0,98866.0,0.0033037]
[1738682228633,0.301685,98889.0,98804.0,0.00348302]
[1738682228634,0.31517856,98881.0,98804.0,0.00348302]
[1738682228851,0.31517856,98881.0,98777.0,0.01]
[1738682228852,0.301838,98789.0,98788.0,3.8e-07]
[1738682229352,0.33769503,98789.0,98788.0,3.8e-07]
[1738682229557,0.31517856,98778.0,98768.0,0.05543156]
[1738682229766,0.10390402,98777.0,98768.0,0.04090317]
[1738682229979,0.10390402,98777.0,98776.0,0.151858]
[1738682230190,0.10238506,98777.0,98768.0,0.19277317]
[1738682230400,1.5,98776.0,98768.0,0.04090317]
[1738682230624,1.5,98776.0,98774.0,0.151861]
[1738682230836,1.5,98776.0,98774.0,0.15186]
[1738682231253,1.5,98776.0,98772.0,0.202485]
[1738682231254,0.35867622,98780.0,98779.0,0.151854]
[1738682231465,0.35867622,98780.0,98768.0,0.04090317]
[1738682231683,0.35867622,98780.0,98778.0,0.151855]
[1738682231898,1.5,98797.0,98768.0,0.04090317]
[1738682232107,0.00151879,98796.0,98769.0,0.10238506]
[1738682232317,0.00151879,98796.0,98768.0,0.04090317]
[1738682232522,0.35867622,98780.0,98768.0,0.04090317]
[1738682232735,0.00151875,98779.0,98768.0,0.04090317]
[1738682233177,0.35867622,98800.0,98768.0,0.04090317]
[1738682233387,0.35867622,98810.0,98773.0,0.10238506]
[1738682233596,0.35867622,98790.0,98768.0,0.04090317]
[1738682233818,0.10390378,98789.0,98768.0,0.04090317]
[1738682234032,0.00151872,98789.0,98770.0,0.08084279]
[1738682234241,0.35867622,98810.0,98770.0,0.08084279]
[1738682234467,0.35867622,98810.0,98768.0,0.04090317]
[1738682234468,0.08084279,98808.0,98778.0,0.10238506]
[1738682234681,0.08084279,98824.0,98778.0,0.10238506]
[1738682234902,0.08084279,98824.0,98822.0,0.151786]
[1738682235116,0.08084279,98824.0,98787.0,0.10238506]
[1738682235337,0.00151821,98823.0,98789.0,0.202451]
[1738682235541,0.00151821,98823.0,98768.0,0.04043156]
[1738682235542,0.35867622,98810.0,98776.0,0.10238506]
[1738682235813,0.1,98838.0,98768.0,0.04043156]
[1738682235814,0.00151846,98809.0,98777.0,0.10238506]
[1738682236012,0.08236089,98829.0,98780.0,0.10238506]
[1738682236220,0.151783,98825.0,98780.0,0.10238506]
[1738682236429,0.15181,98808.0,98776.0,0.00047161]
[1738682236639,0.35867622,98790.0,98776.0,0.00047161]
[1738682236849,0.151857,98777.0,98776.0,0.00047161]
[1738682237129,0.30337594,98777.0,98776.0,0.00047161]
[1738682237341,0.35867622,98790.0,98776.0,0.00047161]
[1738682237555,0.151857,98777.0,98776.0,0.00047161]
[1738682237763,0.10238506,98777.0,98776.0,0.00047161]
[1738682237983,0.25238506,98777.0,98776.0,0.00047161]
[1738682238415,0.301869,98769.0,98768.0,0.04043156]
[1738682238620,0.301889,98756.0,98730.0,7e-05]
[1738682238825,0.301921,98735.0,98730.0,7e-05]
[1738682239034,0.301921,98735.0,98734.0,0.00187024]
[1738682239252,0.151914,98740.0,98734.0,0.00187024]
[1738682239463,0.151921,98735.0,98734.0,0.00187024]
[1738682239675,0.40582559,98735.0,98734.0,0.00187024]
[1738682239884,0.52366806,98735.0,98734.0,0.00187024]
[1738682240094,0.42730606,98735.0,98734.0,0.00187024]
[1738682240368,0.10238506,98735.0,98734.0,0.00187024]
[1738682240609,0.10238506,98735.0,98702.0,0.08084279]
[1738682240610,0.1315,98734.0,98666.0,0.01]
[1738682240850,0.35867622,98710.0,98673.0,0.2191925]
[1738682241079,0.151972,98702.0,98700.0,0.00064127]
[1738682241293,0.00152007,98701.0,98700.0,0.00064127]
[1738682241710,0.00152002,98701.0,98700.0,0.00064127]
[1738682241936,0.3,98694.0,98677.0,0.0177845]
[1738682242150,0.301991,98690.0,98677.0,0.0177845]
[1738682242377,0.3,98704.0,98677.0,0.0177845]
[1738682242588,0.00152038,98703.0,98702.0,0.151972]
[1738682242796,0.35867622,98730.0,98689.0,0.00015422]
[1738682243007,0.15,98729.0,98689.0,0.00015422]
[1738682243237,0.56125022,98730.0,98689.0,0.00015422]
[1738682243238,0.35867622,98730.0,98708.0,0.151961]
[1738682243499,0.01977923,98747.0,98689.0,0.00015422]
[1738682243708,0.00151968,98729.0,98700.0,0.001]
[1738682243916,0.0015195,98728.0,98714.0,0.151953]
[1738682244130,0.15,98725.0,98692.0,0.151986]
[1738682244350,0.15,98725.0,98689.0,0.00015422]
[1738682244351,0.35867622,98710.0,98689.0,0.00015422]
[1738682244559,0.46652512,98709.0,98708.0,0.001]
[1738682244795,0.465005,98709.0,98708.0,0.001]
[1738682245013,0.151991,98690.0,98689.0,0.00015422]
[1738682245232,0.15,98682.0,98677.0,0.01475121]
[1738682245446,0.152009,98678.0,98677.0,0.01475121]
[1738682245655,0.00370927,98680.0,98677.0,0.01479833]
[1738682246114,0.10238506,98678.0,98677.0,0.01479833]
[1738682246336,0.00370927,98680.0,98677.0,0.01479833]
[1738682246542,0.00115034,98680.0,98678.0,0.152009]
[1738682246749,0.005,98690.0,98689.0,0.151992]
[1738682246976,0.1,98741.0,98730.0,0.151928]
[1738682247212,0.005,98709.0,98708.0,0.151963]
[1738682247439,0.005,98709.0,98677.0,0.01475121]
[1738682247640,0.07716529,98735.0,98677.0,0.01475121]
[1738682247641,0.07031146,98735.0,98677.0,0.01475121]
[1738682247847,0.02001407,98732.0,98677.0,0.01475121]
[1738682248058,0.00151977,98731.0,98689.0,0.001]
[1738682248267,0.10238506,98730.0,98690.0,0.10238506]
[1738682248476,0.0015198,98729.0,98692.0,0.08084279]
[1738682248740,0.0015198,98729.0,98728.0,0.151932]
[1738682248928,0.07031146,98735.0,98734.0,0.151923]
[1738682249930,0.00151919,98762.0,98734.0,0.12538506]
[1738682250184,0.00151919,98762.0,98761.0,0.151881]
[1738682250346,0.01265309,98763.0,98761.0,0.151881]
[1738682250745,0.00151887,98791.0,98750.0,0.202531]
[1738682250948,0.23283106,98790.0,98734.0,4.712e-05]
[1738682251322,0.15,98769.0,98734.0,4.712e-05]
[1738682251534,0.15,98767.0,98740.0,0.08084279]
[1738682251744,0.15,98767.0,98741.0,0.151911]
[1738682251745,0.151877,98764.0,98741.0,0.151911]
[1738682251950,0.10390426,98763.0,98734.0,4.712e-05]
[1738682252155,0.02857495,98761.0,98713.0,0.08084279]
[1738682252366,0.02857495,98761.0,98713.0,0.08098422]
[1738682252367,0.10238506,98756.0,98713.0,0.08098422]
[1738682252561,1.5,98714.0,98713.0,0.08098422]
[1738682252857,1.5,98714.0,98692.0,0.08084279]
[1738682253126,0.3,98735.0,98702.0,0.0809843]
[1738682253393,0.10238506,98734.0,98702.0,0.00014151]
[1738682253649,1.5,98703.0,98685.0,0.202665]
[1738682253866,0.02005481,98709.0,98677.0,0.01489278]
[1738682253867,0.15152002,98702.0,98677.0,0.01489278]
[1738682254098,0.07836994,98680.0,98677.0,0.01489278]
[1738682254337,0.00152014,98679.0,98678.0,0.152009]
[1738682254558,0.07836994,98680.0,98678.0,0.152009]
[1738682255023,0.07836994,98680.0,98673.0,0.0165045]
[1738682255260,0.1145123,98679.0,98678.0,0.152009]
[1738682255509,0.11334323,98679.0,98678.0,0.20941231]
[1738682255720,0.11334323,98679.0,98678.0,0.152009]
[1738682255949,0.11334323,98679.0,98678.0,0.10338506]
[1738682256187,0.02481139,98680.0,98678.0,0.25539406]
[1738682256446,0.05471632,98729.0,98723.0,0.15194]
[1738682257067,0.02156613,98724.0,98723.0,0.25432506]
[1738682257281,0.05471632,98729.0,98723.0,0.25432506]
[1738682257282,0.05471632,98729.0,98728.0,0.184932]
[1738682257487,0.05471632,98729.0,98728.0,0.27731706]
[1738682257718,0.08084279,98768.0,98728.0,0.10238506]
[1738682257926,0.00013963,98729.0,98712.0,0.151955]
[1738682258131,0.00013963,98729.0,98673.0,0.0987045]
[1738682258351,0.10238506,98728.0,98681.0,0.08084279]
[1738682258562,0.00013963,98729.0,98705.0,0.202623]
[1738682258800,0.00013963,98729.0,98681.0,0.08084279]
[1738682259012,0.15,98726.0,98702.0,0.151972]
[1738682259229,0.15,98724.0,98682.0,0.023]
[1738682259436,0.00151975,98723.0,98705.0,0.202623]
[1738682259641,0.15,98724.0,98713.0,0.2027129]
[1738682259847,0.00013963,98729.0,98713.0,0.0011069]
[1738682260077,0.00013963,98729.0,98728.0,0.151932]
[1738682260711,0.00013963,98729.0,98728.0,0.25431706]
[1738682261609,0.00013963,98729.0,98728.0,0.29731706]
[1738682261825,0.00013963,98729.0,98728.0,0.27731706]
[1738682262034,0.00013963,98729.0,98728.0,0.25431706]
[1738682262243,0.00013963,98729.0,98728.0,0.25531706]
[1738682262463,0.00013963,98729.0,98728.0,0.25431706]
[1738682262894,0.00013963,98729.0,98728.0,0.152932]
[1738682263111,0.00013963,98729.0,98688.0,0.0454]
[1738682263327,0.31851357,98723.0,98707.0,0.202619]
[1738682263537,1.5,98719.0,98712.0,0.202609]
[1738682263744,0.0015196,98718.0,98711.0,0.151957]
[1738682263970,0.0015196,98718.0,98667.0,0.0033037]
[1738682263971,0.15151966,98717.0,98667.0,0.0033037]
[1738682264191,0.31851357,98700.0,98674.0,0.08084279]
[1738682264405,1.50152012,98699.0,98674.0,0.18322785]
[1738682264612,1.5,98699.0,98674.0,0.10238506]
[1738682264823,0.11319144,98698.0,98673.0,0.0165045]
[1738682265034,0.15,98697.0,98673.0,0.0165045]
[1738682265266,0.08084279,98709.0,98673.0,0.0165045]
[1738682265267,0.08084279,98719.0,98674.0,0.10238506]
[1738682265526,0.1,98741.0,98673.0,0.0165045]
[1738682265527,0.31851357,98740.0,98675.0,0.023]
[1738682265738,0.08084279,98719.0,98718.0,0.151947]
[1738682266175,0.08084279,98719.0,98711.0,0.20261]
[1738682266176,0.1519,98750.0,98728.0,0.151932]
[1738682266398,0.00151947,98730.0,98683.0,0.212669]
[1738682266665,0.00151947,98730.0,98678.0,0.15]
[1738682266666,0.31851357,98721.0,98684.0,0.10238506]
[1738682266915,0.4909754,98720.0,98698.0,0.202637]
[1738682267115,0.3,98737.0,98684.0,0.10238506]
[1738682267116,0.151919,98737.0,98684.0,0.10252663]
[1738682267340,0.35918245,98740.0,98684.0,0.10252663]
[1738682267341,0.00151964,98736.0,98685.0,0.023]
[1738682267556,0.00151964,98736.0,98684.0,0.00014157]
[1738682267557,0.151985,98694.0,98684.0,0.00014157]
[1738682267804,0.151992,98689.0,98684.0,0.00014157]
[1738682268022,0.151998,98685.0,98684.0,0.00014157]
[1738682268239,0.10238506,98685.0,98684.0,0.00014157]
[1738682268445,0.25438306,98685.0,98684.0,0.00014157]
[1738682268872,0.35918245,98694.0,98684.0,0.00014157]
[1738682268873,0.151996,98687.0,98684.0,0.00014157]
[1738682269081,0.00116886,98686.0,98684.0,0.00014157]
[1738682269310,0.10238506,98685.0,98684.0,0.00014157]
[1738682269515,0.55355392,98685.0,98684.0,0.00014157]
[1738682269702,0.25238506,98685.0,98684.0,0.00014157]
[1738682270151,0.54810606,98685.0,98684.0,0.00014157]
[1738682270360,0.47183506,98685.0,98684.0,0.00014157]
[1738682270571,0.25238506,98685.0,98684.0,0.00024847]
[1738682271002,0.302015,98674.0,98673.0,0.01315021]
[1738682271214,0.302015,98674.0,98600.0,0.000265]
[1738682271215,0.15,98639.0,98625.0,0.00567006]
[1738682271413,0.602103,98617.0,98616.0,0.00578777]
[1738682271661,0.16,98616.0,98600.0,0.000265]
[1738682271883,0.152165,98577.0,98548.0,0.0049111]
[1738682272091,1.5,98560.0,98548.0,0.0049111]
[1738682272307,0.15116886,98559.0,98548.0,0.0049111]
[1738682272523,0.15,98542.0,98504.0,0.00121776]
[1738682272739,0.37264219,98559.0,98462.0,0.010808]
[1738682272740,0.152282,98501.0,98465.0,0.00121808]
[1738682272954,0.152282,98501.0,98451.0,0.203146]
[1738682272955,0.15085569,98478.0,98424.0,0.0012952]
[1738682273184,1.5152282,98501.0,98424.0,0.0407642]
[1738682273185,0.01,98484.0,98424.0,0.0407642]
[1738682273390,0.01,98450.0,98449.0,0.152363]
[1738682273597,0.01,98456.0,98455.0,0.152353]
[1738682273812,0.08084279,98474.0,98460.0,0.152346]
[1738682273813,0.01,98461.0,98460.0,0.152346]
[1738682274017,0.10238506,98483.0,98464.0,0.152339]
[1738682274018,0.01,98465.0,98464.0,0.152339]
[1738682274258,0.00990054,98449.0,98398.0,0.00070455]
[1738682274460,0.01,98459.0,98421.0,9.946e-05]
[1738682274675,0.01,98439.0,98420.0,0.35918245]
[1738682274906,0.01,98495.0,98398.0,0.00070455]
[1738682274907,0.00990054,98399.0,98398.0,0.00117602]
[1738682275102,0.16247,98380.0,98349.0,0.02024335]
[1738682275315,0.16247,98380.0,98325.0,0.04067]
[1738682275316,0.01,98358.0,98325.0,0.04067]
[1738682275531,0.00990054,98358.0,98325.0,0.04067]
[1738682275753,0.00990054,98358.0,98355.0,0.152508]
[1738682275963,0.01036359,98358.0,98355.0,0.152508]
[1738682276175,0.00990054,98356.0,98355.0,0.152508]
[1738682276389,0.00046305,98358.0,98355.0,0.152508]
[1738682276390,0.00046305,98358.0,98355.0,0.25489306]
[1738682276603,0.00046305,98358.0,98357.0,0.002016]
[1738682276820,0.1,98431.0,98355.0,0.152508]
[1738682276821,0.1,98478.0,98396.0,0.01]
[1738682277034,0.0777,98504.0,98358.0,1.099294]
[1738682277035,0.0472,98539.0,98442.0,0.01]
[1738682277249,0.00367281,98532.0,98503.0,0.01]
[1738682277458,0.00367281,98532.0,98507.0,0.01]
[1738682277459,0.1,98523.0,98507.0,0.01]
[1738682277658,0.1,98539.0,98490.0,0.35918245]
[1738682277866,0.01044532,98552.0,98476.0,0.01]
[1738682277867,0.883669,98538.0,98476.0,0.01]
[1738682278073,0.152239,98529.0,98528.0,0.01]
[1738682278288,0.15,98489.0,98438.0,0.01]
[1738682278497,0.15,98487.0,98438.0,0.0313187]
[1738682278699,0.15,98485.0,98457.0,0.01]
[1738682278905,0.1,98494.0,98458.0,0.32499022]
[1738682279116,0.10238506,98484.0,98483.0,0.16231]
[1738682279330,0.202987,98529.0,98470.0,0.35918245]
[1738682279331,0.1,98538.0,98470.0,0.35918245]
[1738682279551,0.10238506,98521.0,98470.0,0.35918245]
[1738682279810,0.2105,98497.0,98450.0,0.35918245]
[1738682280076,0.15,98485.0,98435.0,0.01]
[1738682280315,0.1575,98513.0,98435.0,0.01]
[1738682280316,0.15,98467.0,98458.0,0.001]
[1738682280555,0.15,98467.0,98409.0,0.10238506]
[1738682280556,0.10238506,98466.0,98450.0,0.01]
[1738682280799,0.31,98514.0,98470.0,0.001]
[1738682280800,0.10238506,98486.0,98470.0,0.001]
[1738682281066,0.1,98529.0,98470.0,0.001]
[1738682281311,0.040644,98537.0,98470.0,0.001]
[1738682281312,0.2105,98487.0,98470.0,0.001]
[1738682281561,0.10238506,98494.0,98470.0,0.001]
[1738682281780,0.01575,98512.0,98470.0,0.001]
[1738682281781,0.10238506,98486.0,98480.0,0.152314]
[1738682281998,0.1,98531.0,98485.0,0.01]
[1738682282244,0.10238506,98529.0,98516.0,0.152258]
[1738682282482,0.10238506,98529.0,98493.0,0.01]
[1738682282726,0.10238506,98529.0,98514.0,0.152261]
[1738682282996,0.10238506,98529.0,98517.0,0.152257]
[1738682283239,0.10238506,98529.0,98510.0,0.01]
[1738682283446,0.00046418,98531.0,98523.0,0.01]
[1738682283658,0.00046418,98531.0,98530.0,0.01]
[1738682283864,0.00046418,98531.0,98530.0,0.11238506]
[1738682284095,0.040609,98571.0,98570.0,0.162176]
[1738682284308,0.08123188,98587.0,98586.0,0.152151]
[1738682284528,0.09121283,98626.0,98594.0,0.01]
[1738682284529,0.08084279,98626.0,98594.0,0.01]
[1738682284739,0.040595,98606.0,98605.0,0.162122]
[1738682284952,0.08915299,98629.0,98595.0,0.10238506]
[1738682285165,1.5,98596.0,98571.0,0.10238506]
[1738682285374,1.5,98596.0,98525.0,0.01]
[1738682285375,1.5,98596.0,98556.0,0.20293]
[1738682285588,0.15,98595.0,98530.0,0.35918245]
[1738682285799,0.040591,98624.0,98530.0,0.35918245]
[1738682285800,0.15,98587.0,98530.0,0.35918245]
[1738682286014,1.5,98556.0,98538.0,0.202965]
[1738682286217,1.5,98556.0,98555.0,0.00784162]
[1738682286429,1.5,98556.0,98555.0,0.16004062]
[1738682286631,1.5,98556.0,98555.0,0.00784162]
[1738682286831,1.5,98556.0,98555.0,0.00014162]
[1738682287108,1.75238506,98556.0,98555.0,0.00014162]
[1738682287356,0.00038112,98555.0,98528.0,0.15224]
[1738682287595,0.00038112,98555.0,98498.0,0.08123188]
[1738682287596,0.10238506,98554.0,98518.0,0.08123188]
[1738682287845,0.00038112,98555.0,98528.0,0.10238506]
[1738682288087,0.00038112,98555.0,98552.0,0.152203]
[1738682288531,0.00038112,98555.0,98554.0,0.1522]
[1738682288740,0.00038112,98555.0,98554.0,0.25458506]
[1738682288974,0.00038112,98555.0,98554.0,0.32064613]
[1738682289219,0.08084279,98654.0,98604.0,0.152122]
[1738682289481,0.08123188,98628.0,98580.0,0.10238506]
[1738682289736,1.5,98605.0,98604.0,0.152123]
[1738682290217,1.5,98605.0,98586.0,0.01]
[1738682290218,1.5,98605.0,98560.0,0.35918245]
[1738682290422,0.202753,98642.0,98555.0,0.0077]
[1738682290423,0.152136,98596.0,98555.0,0.0077]
[1738682290642,0.15,98606.0,98555.0,0.0077]
[1738682290839,0.10238506,98595.0,98572.0,0.08123188]
[1738682291045,0.35918245,98640.0,98604.0,0.00014167]
[1738682291256,0.152122,98605.0,98604.0,0.00014167]
[1738682291473,1.63545533,98605.0,98604.0,0.00014167]
[1738682291680,1.78545533,98605.0,98604.0,0.00014167]
[1738682291888,1.65,98605.0,98604.0,0.00014167]
[1738682292107,2.06968678,98605.0,98604.0,0.00114167]
[1738682292321,0.15,98571.0,98522.0,0.0761]
[1738682292534,0.152194,98558.0,98557.0,0.08123188]
[1738682292751,0.152197,98556.0,98509.0,0.203026]
[1738682292965,0.10238506,98570.0,98449.0,0.01]
[1738682292966,1.7105,98520.0,98449.0,0.01]
[1738682293175,0.15,98473.0,98421.0,0.01]
[1738682293431,0.15,98473.0,98388.0,0.01]
[1738682293432,0.152267,98511.0,98464.0,0.152339]
[1738682293645,0.35918245,98520.0,98410.0,0.35918245]
[1738682293646,0.15,98487.0,98410.0,0.35918245]
[1738682293853,1.5,98457.0,98444.0,0.20316]
[1738682294064,0.15,98487.0,98425.0,0.203199]
[1738682294323,0.08123188,98483.0,98457.0,0.10238506]
[1738682294573,1.5,98472.0,98457.0,0.10238506]
[1738682295077,1.5,98472.0,98470.0,0.152329]
[1738682295311,1.5,98472.0,98456.0,0.0011068]
[1738682295556,0.35918245,98466.0,98456.0,0.0011068]
[1738682295807,0.01,98456.0,98352.0,0.01]
[1738682296001,3.536041,98465.0,98337.0,0.01]
[1738682296002,0.15,98390.0,98337.0,0.01]
[1738682296211,1.5,98377.0,98358.0,0.10238506]
[1738682296449,0.165,98390.0,98359.0,0.0001071]
[1738682296450,0.152501,98360.0,98359.0,0.0001071]
[1738682296648,0.152498,98362.0,98359.0,0.0001071]
[1738682296896,1.60238506,98360.0,98359.0,0.0001071]
[1738682297110,1.75238506,98360.0,98359.0,0.0001071]
[1738682297325,1.60238506,98360.0,98359.0,0.0001071]
[1738682297544,0.00013886,98378.0,98359.0,0.0001071]
[1738682298226,0.00013886,98378.0,98360.0,0.10238506]
[1738682298435,0.35918245,98370.0,98359.0,0.0001071]
[1738682298653,0.203328,98363.0,98359.0,0.0001071]
[1738682298858,1.652501,98360.0,98359.0,0.0001071]
[1738682299285,1.652501,98360.0,98270.0,0.0133037]
[1738682299286,0.1,98358.0,98270.0,0.0033037]
[1738682299503,0.152547,98330.0,98276.0,0.08123188]
[1738682299708,0.35918245,98360.0,98329.0,0.10245506]
[1738682299933,0.08123188,98377.0,98332.0,0.10238506]
[1738682300143,0.08123188,98367.0,98357.0,0.152504]
[1738682300355,0.001,98360.0,98359.0,0.152502]
[1738682300572,0.08123188,98387.0,98386.0,0.15246]
[1738682300783,0.08123188,98387.0,98386.0,0.25484506]
[1738682301032,0.08123188,98387.0,98386.0,0.10238506]
[1738682301033,0.00013886,98387.0,98386.0,0.10238506]
[1738682301276,0.00013886,98387.0,98386.0,0.25484506]
[1738682301547,0.08123188,98428.0,98386.0,0.25484506]
[1738682301548,0.08123188,98428.0,98390.0,0.35918245]
[1738682301813,0.08123188,98428.0,98427.0,0.152397]
[1738682302057,0.08123188,98460.0,98427.0,0.152397]
[1738682302311,0.08123188,98492.0,98460.0,0.203128]
[1738682302606,0.08123188,98503.0,98502.0,0.152281]
[1738682302865,0.00022491,98529.0,98528.0,0.15224]
[1738682303278,0.00036638,98529.0,98528.0,0.15224]
[1738682304353,0.00036638,98529.0,98472.0,0.01]
[1738682304585,0.00036638,98529.0,98528.0,0.001]
[1738682304793,1.60275144,98529.0,98528.0,0.001]
[1738682305007,1.53200551,98529.0,98528.0,0.001]
[1738682305432,1.50036638,98529.0,98528.0,0.001]
[1738682305693,1.70524616,98529.0,98528.0,0.001]
[1738682305908,2.00556422,98529.0,98470.0,0.08123188]